Workbook

Sheet от 1года до 3 лет
A1: Утверждаю | H1: Согласовано
A2: Директор ООО"АБК - Пэймент" | H2: Руководитель дошкольной образовательной
A3: Рахматуллин Р.Р. | H3: организации
E5: Примерное 10-дневное меню
E6: для организации питания детей в дошкольных учреждениях
E7: с 12 - часовым пребыванием от 1 года до 3 лет
A8: День 1 - ый
A9: Наименование блюд и | C9: Масса | D9: Кол - во | E9: Кол - во | F9: Пищевые вещества | I9: Энергетическая | J9: витамин | K9: Сборник
A10: продуктов | C10: порции | D10: (в гр ) | E10: (в гр ) | I10: ценность | K10: рецептур
D11: брутто | E11: нетто | F11: белки | G11: жиры | H11: угл-ды | I11: Ккал | J11: С
A13: Каша "Дружба" молочная с маслом сливочным | C13: 140/3 | F13: 4.22 | G13: 4.92 | H13: 23.38 | I13: 155.56 | J13: 0.67 | K13: ТТК №7Д
B14: Крупа рисовая | D14: 10 | E14: 10
B15: Крупа пшенная | D15: 7.5 | E15: 7.5
B16: Молоко | D16: 75 | E16: 75
B17: Вода | D17: 48 | E17: 48
B18: Сахар | D18: 2 | E18: 2
B19: соль иодированная | D19: 0.4 | E19: 0.4
B20: Масло сливочное | D20: 3 | E20: 3
A21: Кофейный напиток с молоком | C21: 180 | F21: 2.85 | G21: 2.41 | H21: 14.35 | I21: 90.54 | J21: 1.17 | K21: №395Дели2010
B22: Кофейный напиток | D22: 2.5 | E22: 2.5
B23: Сахар | D23: 6 | E23: 6
B24: Молоко | D24: 90 | E24: 90
B25: Вода | D25: 108 | E25: 108
A26: Бутерброд с маслом сливочным | C26: 25/5 | F26: 1.92 | G26: 4.36 | H26: 12.92 | I26: 98.50 | K26: №1 Дели2010
B27: Батон нарезной | D27: 25 | E27: 25
B28: Масло сливочное | D28: 5 | E28: 5
A29: Итого: | C29: 353 | F29: =F13+F21+F26 -> 8.99 | G29: =G13+G21+G26 -> 11.69 | H29: =H13+H21+H26 -> 50.66 | I29: =I13+I21+I26 -> 344.60 | J29: =J13+J21+J26 -> 1.84
B30: 2 - ой ЗАВТРАК
A31: Сок | C31: 200 | D31: 200 | E31: 200 | F31: 1.00 | H31: 20.20 | I31: 84.80 | J31: 4.00 | K31: №418 Дели2016
A32: в ассортименте в инд.упаковке
A33: Итого: | C33: 200 | F33: =F31 -> 1.00 | G33: =G31 -> 0.00 | H33: =H31 -> 20.20 | I33: =I31 -> 84.80 | J33: =J31 -> 4.00
B34: ОБЕД
A35: Салат из моркови припущенной с яблоками | C35: 40 | F35: 0.42 | G35: 0.07 | H35: 3.45 | I35: 16.16 | J35: 1.750 | K35: ТТК от 25.01.2023
B36: морковь | D36: 40.88 | E36: 32.70
B37: масса припущенной моркови | E37: 30.00
B38: яблоки | D38: 11.40 | E38: 10.00
B39: сахар | D39: 0.40 | E39: 0.40
A40: Суп картофельный с вермишелью,с мясными фрикадельками | C40: 150/10 | F40: 3.95 | G40: 3.56 | H40: 10.51 | I40: 97.15 | J40: 5.190 | K40: №88 СБ дошк 2016
B41: говядина б/к (котлетное мясо) | D41: 11.97 | E41: 11.4
B42: или фарш говяжий | D42: 11.97 | E42: 11.4
B43: Лук репчатый | D43: 1.19 | E43: 1
B44: Яйцо | D44: 0.96 | E44: 0.8
B45: Вода для фарша | D45: 1 | E45: 1
B46: соль иодированная | D46: 0.1 | E46: 0.1
B47: масса полуфабриката | E47: 14.3
B48: масса готовых фрикаделек | E48: 10
B49: Картофель | D49: 59.90 | E49: 45.00
B50: вермишель | D50: 6.00 | E50: 6.00
B51: Морковь | D51: 7.50 | E51: 6.00
B52: Лук репчатый | D52: 7.20 | E52: 6.00
B53: Масло растительное | D53: 1.50 | E53: 1.50
B54: соль иодированная | D54: 0.50 | E54: 0.50
B55: Вода | D55: 105.00 | E55: 105.00
A56: Котлеты рубленные из говядины | C56: 50 | F56: 8.42 | G56: 9.35 | H56: 8.22 | I56: 150.76 | J56: 0.600 | K56: ТТК от 25.01.2023
B57: говядина (котлетное мясо б/к) | D57: 36.57 | E57: 35
B58: или фарш говяжий | D58: 36.75 | E58: 35
B59: лук репчатый | D59: 10.4 | E59: 8.75
B60: Хлеб пшеничный | D60: 8.13 | E60: 8.13
B61: Вода | D61: 5.2 | E61: 5.2
B62: сухари панировочные | D62: 2.8 | E62: 2.8
B63: соль иодированная | D63: 0.4 | E63: 0.4
B64: масса полуфабриката | E64: 61.9
B65: Масло растительное | D65: 0.60 | E65: 0.60
A66: Капуста тушеная | C66: 120 | F66: 2.45 | G66: 4.42 | H66: 9.47 | I66: 92.40 | J66: 20.500 | K66: №354 сбдошк2016
B67: Капуста свежая | D67: 172.00 | E67: 137.60
B68: Лук репчатый | D68: 5.76 | E68: 4.80
B69: Морковь | D69: 3.00 | E69: 2.40
B70: Томатная паста | D70: 2.88 | E70: 2.88
B71: Мука пшеничная | D71: 1.44 | E71: 1.44
B72: Масло растительное | D72: 4.20 | E72: 4.20
B73: Сахар | D73: 0.90 | E73: 0.90
B74: соль иодированная | D74: 0.45 | E74: 0.45
A75: Напиток из сухофруктов | C75: 150 | F75: 0.50 | G75: 0.07 | H75: 24.01 | I75: 100 | J75: 0.540 | K75: №394 Сб дошк 2016
B76: сухофрукты | D76: 12.75 | E76: 12.50
B77: Сахар | D77: 5.00 | E77: 5.00
B78: вода | D78: 152.00 | E78: 152.00
A79: Хлеб ржаной | C79: 35 | D79: 35 | E79: 35 | F79: 2.31 | G79: 0.42 | H79: 13.86 | I79: 69.30 | K79: табл 6 стр 144,Дели + 2012
A80: Итого: | C80: 555.00 | F80: =F35+F40+F56+F66+F75+F79 -> 18.06 | G80: =G35+G40+G56+G66+G75+G79 -> 17.88 | H80: =H35+H40+H56+H66+H75+H79 -> 69.52 | I80: 525.37 | J80: =J35+J40+J56+J66+J75+J79 -> 28.58
B81: УПЛОТНЕННЫЙ ПОЛДНИК
A82: Кисломолочный напиток | C82: 150/2 | F82: 4.35 | G82: 3.75 | H82: 8.00 | I82: 83.00 | J82: 1.05 | K82: №420 Сб дошк 2016
A83: (Кефир,ряженка,катык) | B83: кисломолочный напиток | D83: 155 | E83: 150
B84: сахар | D84: 2 | E84: 2
A85: Пудинг рыбный | C85: 45/15 | F85: 8.98 | G85: 2.93 | H85: 4.40 | I85: 80.00 | J85: 0.12 | K85: №286 СБ дошк 2016
B86: рыба (минтай с/м БГ) | D86: 51.54 | E86: 37.9
B87: масса отварной рыбы | E87: 30
B88: Хлеб пшеничный | D88: 6.2 | E88: 6.2
B89: яйцо | D89: 4.8 | E89: 4
B90: молоко | D90: 9 | E90: 9
B91: масло сливочное | D91: 1.7 | E91: 1.7
B92: соль иодированная | D92: 0.3 | E92: 0.3
B93: Масло растительное | D93: 0.8 | E93: 0.8
B94: масса пудинга | E94: 45
B95: Соус молочный
B96: молоко | D96: 7.5 | E96: 7.5
B97: масло сливочное | D97: 0.8 | E97: 0.8
B98: Мука пшеничная | D98: 0.8 | E98: 0.8
B99: Вода | D99: 7.5 | E99: 7.5
B100: Сахар | D100: 0.15 | E100: 0.15
B101: соль иодированная | D101: 0.09 | E101: 0.09
B102: масса соуса | E102: 15
A103: Пюре Картофельное | C103: 120 | F103: 2.45 | G103: 3.84 | H103: 16.35 | I103: 109.80 | J103: 14.53 | K103: № 339 СБ дошк 2016
B104: Картофель | D104: 136.80 | E104: 102.60
B105: Молоко | D105: 18.96 | E105: 18.00
B106: Масло сливочное | D106: 4.20 | E106: 4.20
B107: соль иодированная | D107: 0.45 | E107: 0.45
A108: Чай с сахаром | C108: 150/5 | F108: 0.0525 | G108: 0.015 | H108: 5.02 | I108: 20.08 | J108: 0.02 | K108: №411 сб дошк 2016
B109: чай весовой | D109: 0.4 | E109: 0.4
B110: Сахар | D110: 5 | E110: 5
B111: Вода | D111: 150 | E111: 150
A112: Кондитерское изделие | B112: вафли | C112: 20 | D112: 20.00 | E112: 20.00 | F112: 0.75 | G112: 6.10 | H112: 12.50 | I112: 108.50 | K112: табл 6 стр 136,Ддели +,2012
A113: Хлеб пшеничный | C113: 25 | D113: 25.00 | E113: 25.00 | F113: 1.90 | G113: 0.20 | H113: 12.30 | I113: 58.75 | J113: 0.00 | K113: табл 6 стр 134,Дели + 2012
A114: Итого: | C114: 532.00 | F114: =F82+F85+F103+F108+F112+F113 -> 18.48 | G114: =G82+G85+G103+G108+G112+G113 -> 16.84 | H114: 58.57 | I114: 460.13 | J114: 15.72
A115: ВСЕГО: | C115: =C29+C33+C80+C114 -> 1640.00 | F115: =F29+F33+F80+F114 -> 46.53 | G115: 46.40 | H115: 198.94 | I115: 1414.90 | J115: 50.14
A117: День 2- ой
A118: Наименование блюд и | C118: Масса | D118: Кол - во | E118: Кол - во | F118: Пищевые вещества | I118: Энергетическая | J118: Витамин | K118: Сборник
A119: продуктов | C119: порции | D119: (в гр ) | E119: (в гр ) | I119: ценность | K119: рецептур
D120: брутто | E120: нетто | F120: белки | G120: жиры | H120: угл-ды | I120: Ккал | J120: С
B121: ЗАВТРАК
A122: Каша полбяная молочная с маслом сливочным | C122: 140/3 | F122: 3.76 | G122: 6.13 | H122: 22.96 | I122: 162.00 | K122: ТТК №1Д
B123: Крупа полбяная | D123: 18 | E123: 18
B124: Молоко | D124: 70 | E124: 70
B125: вода | D125: 53 | E125: 53
B126: Сахар | D126: 2 | E126: 2
B127: соль иодированная | D127: 0.4 | E127: 0.4
B128: Масло сливочное | D128: 3 | E128: 3
A129: Какао с молоком | C129: 180 | F129: 3.67 | G129: 3.19 | H129: 15.82 | I129: 106.74 | J129: 1.43 | K129: №397 Дели2010
B130: Какао-порошок | D130: 2 | E130: 2
B131: Сахар | D131: 6 | E131: 6
B132: Молоко | D132: 110 | E132: 110
B133: Вода | D133: 80 | E133: 80
A134: Бутерброд с сыром, маслом сливочным | C134: 25/10/5 | F134: 4.55 | G134: 7.02 | H134: 12.92 | I134: 132.83 | J134: 0.07 | K134: №3 сб дошк2016
B135: Батон нарезной | D135: 25 | E135: 25
B136: Сыр | D136: 10.2 | E136: 10
B137: Масло сливочное | D137: 5 | E137: 5
A138: Итого: | C138: 363 | F138: =F122+F129+F134 -> 11.98 | G138: =G122+G129+G134 -> 16.34 | H138: =H122+H129+H134 -> 51.70 | I138: =I122+I129+I134 -> 401.57 | J138: =J122+J129+J134 -> 1.50
B139: 2 - ой ЗАВТРАК
A140: Фрукты свежие | C140: 100 | D140: 100 | E140: 100 | F140: 0.40 | G140: 0.40 | H140: 9.80 | I140: 47.00 | J140: 10.00 | K140: №386 СБ
A141: (яблоки,или апельсин, или банан,или мандарин ) | K141: дошк.2016
A142: Итого: | C142: 100 | F142: =F140 -> 0.40 | G142: =G140 -> 0.40 | H142: =H140 -> 9.80 | I142: =I140 -> 47.00 | J142: =J140 -> 10.00
B143: ОБЕД
A144: Салат из картофеля с солеными огурцами | C144: 40 | F144: 0.49 | G144: 3.14 | H144: 3.58 | I144: 44.56 | J144: 2.41 | K144: №23 сб дошк2016
B145: огурцы соленые | D145: 21.84 | E145: 12.00
B146: картофель | D146: 21.92 | E146: 16.00
B147: морковь | D147: 10.24 | E147: 8.00
B148: лук репчатый | D148: 2.40 | E148: 2.00
B149: масло растительное | D149: 2.00 | E149: 2.00
A150: Борщ со свежей капустой, картофелем на курином бульоне,со сметаной | C150: 150/7 | F150: 1.26 | G150: 4.00 | H150: 6.81 | I150: 73.58 | J150: 6.43 | K150: №63 сб дошк2016
B151: Капуста свежая | D151: 15.6 | E151: 12.5
B152: Картофель | D152: 16.63 | E152: 12.5
B153: Морковь | D153: 11.25 | E153: 9.0
B154: Лук репчатый | D154: 7.80 | E154: 6.5
B155: Свекла | D155: 32 | E155: 25.0
B156: Сахар | D156: 1.5 | E156: 1.5
B157: Масло растительное | D157: 3.0 | E157: 3.0
B158: соль иодированная | D158: 0.65 | E158: 0.7
B159: Бульон | D159: 120 | E159: 120.0
B160: Сметана | D160: 7.0 | E160: 7.0
A161: Фрикадельки куриные в молочном соусе | C161: 40/20 | F161: 5.99 | G161: 7.13 | H161: 5.16 | I161: 109.04 | J161: 0.47 | K161: № 325 сб дошк 2016
B162: цыплята - бройлеры с/м | D162: 45.6 | E162: 29.3
B163: или фарш куриный | D163: 30.77 | E163: 29.3
B164: Хлеб пшеничный | D164: 7.3 | E164: 7.3
B165: Вода | D165: 9.0 | E165: 9.0
B166: соль иодированная | D166: 0.3 | E166: 0.3
B167: Масса полуфабриката | E167: 46.0
B168: Масло растительное | D168: 0.6 | E168: 0.6
B169: Соус молочный: | E169: 20.0
B170: Молоко | D170: 10.0 | E170: 10.0
B171: Масло сливочное | D171: 1.04 | E171: 1.0
B172: Мука пшеничная | D172: 1.04 | E172: 1.0
B173: Вода | D173: 10.0 | E173: 10.0
B174: Сахар | D174: 0.2 | E174: 0.2
B175: соль иодированная | D175: 0.2 | E175: 0.2
A176: Макаронные изделия отварные с маслом сливочным | C176: 110/3 | F176: 4.17 | G176: 2.66 | H176: 23.45 | I176: 134.38 | J176: 0.00 | K176: №219 Сб дошк.2016
B177: макаронные изделия | D177: 38.5 | E177: 38.5
B178: вода | D178: 231.0 | E178: 231.0
B179: соль иодированная | D179: 0.45 | E179: 0.45
B180: масло сливочное | D180: 3 | E180: 3
A181: Кисель | C181: 150 | F181: 0.45 | G181: 0.08 | H181: 22.65 | I181: 92.70 | J181: 0.83 | K181: №648 сбшк2004
B182: Кисель-концентрат | D182: 17.5 | E182: 17.5
B183: Сахар | D183: 5 | E183: 5
B184: вода | D184: 150 | E184: 150
A185: Булочка дорожная | C185: 50 | F185: 3.39 | G185: 6.98 | H185: 21.07 | I185: 160.50 | K185: №453 сб дошк2016
B186: Мука пшеничная | D186: 30.50 | E186: 30.00
B187: мука пшеничная на подпыл | D187: 1.00 | E187: 1.00
B188: Сахар | D188: 6.00 | E188: 6.00
B189: Масло сливочное | D189: 6.50 | E189: 6.50
B190: соль иодированная | D190: 0.30 | E190: 0.30
B191: дрожжи сухие | D191: 0.20 | E191: 0.20
B192: вода | D192: 15.30 | E192: 15.30
B193: масса полуфабриката | E193: 57.00
B194: для крошки:
B195: мука пшеничная | D195: 1.20 | E195: 1.20
B196: масло сливочное | D196: 1.00 | E196: 1.00
B197: масса крошки | E197: 2.00
B198: масло растительное для смазки изделй | D198: 1.00 | E198: 1.00
A199: Хлеб ржаной | C199: 35 | D199: 35 | E199: 35 | F199: 2.31 | G199: 0.42 | H199: 13.86 | I199: 69.30 | K199: табл 6 стр 144,Дели + 2012
A200: Итого: | C200: 1137 | F200: =F144+F150+F161+F176+F181+F185+F199 -> 18.06 | G200: =G144+G150+G161+G176+G181+G185+G199 -> 24.41 | H200: 96.58 | I200: 684.06 | J200: 10.14
B201: УПЛОТНЕННЫЙ ПОЛДНИК
A202: Кисломолочный напиток | C202: 150 | F202: 4.35 | G202: 3.75 | H202: 6.30 | I202: 76.50 | J202: 0.45 | K202: №386 Сб дошк 2017
A203: (кефир,ряженка,катык) | B203: кисломолочный напиток | D203: 155 | E203: 150
... 813 more rows

Sheet от 3 до 7 лет
A1: Утверждаю | H1: Согласовано
A2: Директор ООО"АБК - Пэймент" | H2: Руководитель дошкольной образовательной
A3: Рахматуллин Р.Р. | H3: организации
C5: Примерное 10-дневное меню
C6: для организации питания детей в дошкольных учреждениях
C7: с 12 - часовым пребыванием от 3 до 7 лет
A8: День 1 - ый
A9: Наименование блюд и | C9: Масса | D9: Кол - во | E9: Кол - во | F9: Пищевые вещества | I9: Энергетическая | J9: Витамин | K9: Сборник рецептур
A10: продуктов | C10: порции | D10: (в гр ) | E10: (в гр ) | I10: ценность
D11: брутто | E11: нетто | F11: белки | G11: жиры | H11: угл-ды | I11: Ккал | J11: С
B12: ЗАВТРАК
A13: Каша "Дружба" молочная с маслом сливочным | C13: 180/5 | F13: 5.36 | G13: 9.85 | H13: 29.49 | I13: 229.05 | J13: 0.85 | K13: ТТК №7Д
B14: Крупа рисовая | D14: 13.50 | E14: 13.50
B15: Крупа пшенная | D15: 10.00 | E15: 10.00
B16: Молоко | D16: 90.00 | E16: 90.00
B17: Вода | D17: 68.00 | E17: 68.00
B18: Сахар | D18: 2.50 | E18: 2.50
B19: соль иодированная | D19: 0.50 | E19: 0.50
B20: Масло сливочное | D20: 5 | E20: 5
A21: Кофейный напиток с молоком | C21: 180 | F21: 2.85 | G21: 2.41 | H21: 14.35 | I21: 90.54 | J21: 1.17 | K21: №395 Дели2010
B22: Кофейный напиток | D22: 2.50 | E22: 2.50
B23: Сахар | D23: 6.00 | E23: 6.00
B24: Молоко | D24: 90.00 | E24: 90.00
B25: Вода | D25: 108.00 | E25: 108.00
A26: Бутерброд с маслом сливочным | C26: 30/5 | F26: 2.29 | G26: 4.50 | H26: 15.49 | I26: 111.60 | K26: №1 Дели2010
B27: Батон нарезной | D27: 30.00 | E27: 30.00
B28: Масло сливочное | D28: 5.00 | E28: 5.00
A29: Итого: | C29: 400 | F29: =F13+F21+F26 -> 10.50 | G29: =G13+G21+G26 -> 16.76 | H29: =H13+H21+H26 -> 59.34 | I29: =I13+I21+I26 -> 431.19 | J29: =J13+J21+J26 -> 2.02
B30: 2 - ой ЗАВТРАК
A31: Сок (или нектар) | C31: 180 | D31: 180.00 | E31: 180.00 | F31: 0.90 | H31: 18.18 | I31: 76.32 | J31: 3.60 | K31: №418 сб дошк 2016
A32: в ассортименте
A33: Итого: | C33: 180 | F33: =F31 -> 0.90 | G33: =G31 -> 0.00 | H33: =H31 -> 18.18 | I33: =I31 -> 76.32 | J33: =J31 -> 3.60
B34: ОБЕД
A35: Салат из моркови припущенной с яблоками | C35: 60 | F35: 0.63 | G35: 1.05 | H35: 5.18 | I35: 24.24 | J35: 2.63 | K35: ТТК от 25.01.2023
B36: морковь | D36: 61.31 | E36: 49.05
B37: масса припущенной моркови | E37: 45.00
B38: яблоки | D38: 17.10 | E38: 15.00
B39: сахар | D39: 0.60 | E39: 0.60
A40: Суп картофельный с вермишелью и с мясными фрикадельками | C40: 180/15 | F40: 4.28 | G40: 3.90 | H40: 12.60 | I40: 111.34 | J40: 6.18 | K40: №88 СБ дошк 2016
B41: говядина б/к (котлетное мясо) | D41: 17.85 | E41: 17.1
B42: или фарш говяжий | D42: 17.85 | E42: 17.1
B43: Лук репчатый | D43: 1.79 | E43: 1.5
B44: Яйцо | D44: 1.44 | E44: 1.2
B45: Вода для фарша | D45: 1.5 | E45: 1.5
B46: соль иодированная | D46: 0.15 | E46: 0.15
B47: Масса полуфабриката | E47: 21.5
B48: масса готовых фрикаделек | E48: 15
B49: Картофель | D49: 80.00 | E49: 60.00
B50: Вермишель | D50: 8.00 | E50: 8.00
B51: Морковь | D51: 10.00 | E51: 8.00
B52: Лук репчатый | D52: 9.60 | E52: 8.00
B53: Масло растительное | D53: 2.00 | E53: 2.00
B54: соль иодированная | D54: 0.70 | E54: 0.70
B55: Вода | D55: 140.00 | E55: 140.00
A56: Котлеты рубленые из говядины | C56: 70 | F56: 11.79 | G56: 13.09 | H56: 11.51 | I56: 211.06 | J56: 0.84 | K56: ТТК от 25.01.2023
B57: говядина б/к (котлетное мясо) | D57: 51.16 | E57: 49
B58: или фарш говяжий | D58: 51.45 | E58: 49
B59: Лук репчатый | D59: 14.64 | E59: 12.3
B60: Хлеб пшеничный | D60: 11 | E60: 11
B61: Вода | D61: 14.7 | E61: 14.7
B62: Сухари панировочные | D62: 4.00 | E62: 4.00
B63: соль иодированная | D63: 0.7 | E63: 0.7
B64: масса полуфабриката | E64: 75.3
B65: масло растительное | D65: 1 | E65: 1
A66: Капуста тушеная | C66: 130 | F66: 2.65 | G66: 4.79 | H66: 10.26 | I66: 100.10 | J66: 22.210 | K66: №354 сбдошк2016
B67: Капуста свежая | D67: 186.30 | E67: 149.00
B68: Лук репчатый | D68: 6.24 | E68: 5.20
B69: Морковь | D69: 3.25 | E69: 2.60
B70: Томатная паста | D70: 3.12 | E70: 3.12
B71: Мука пшеничная | D71: 1.56 | E71: 1.56
B72: Масло растительное | D72: 4.55 | E72: 4.55
B73: Сахар | D73: 1.00 | E73: 1.00
B74: соль иодированная | D74: 0.50 | E74: 0.50
A75: Напиток из сухофруктов | C75: 180 | F75: 0.60 | G75: 0.08 | H75: 28.81 | I75: 120 | J75: 0.65 | K75: №394 Сб дошк 2016
B76: сухофрукты | D76: 15.30 | E76: 15.00
B77: Сахар | D77: 6.00 | E77: 6.00
B78: вода | D78: 183.00 | E78: 183.00
A79: Хлеб ржаной | C79: 45 | D79: 45.00 | E79: 45.00 | F79: 2.97 | G79: 0.54 | H79: 17.82 | I79: 89.10 | K79: табл 6 стр 144,Дели + 2012
A80: Итого: | C80: 680 | F80: =F35+F40+F56+F66+F75+F79 -> 22.91 | G80: =G35+G40+G56+G66+G75+G79 -> 23.45 | H80: 86.19 | I80: 655.36 | J80: 32.51
B81: УПЛОТНЕННЫЙ ПОЛДНИК
A82: Кисломолочный напиток | C82: 180/3 | F82: 5.31 | G82: 4.58 | H82: 7.32 | I82: 91.50 | J82: 1.28 | K82: №420 СБ дошк 2016
A83: (Кефир,ряженка,катык) | B83: кисломолочный напиток | D83: 185.00 | E83: 180.00
B84: сахар | D84: 3.00 | E84: 3.00
A85: Пудинг рыбный | C85: 60/20 | F85: 11.97 | G85: 3.91 | H85: 5.87 | I85: 106.67 | J85: 0.16 | K85: №286 СБ дошк 2016
B86: рыба (минтай с/м БГ) | D86: 68.34 | E86: 50.25
B87: масса отварной рыбы | E87: 39.75
B88: Хлеб пшеничный | D88: 8.25 | E88: 8.25
B89: яйцо | D89: 6.3 | E89: 5.25
B90: молоко | D90: 12 | E90: 12
B91: масло сливочное | D91: 2.25 | E91: 2.25
B92: соль иодированная | D92: 0.4 | E92: 0.4
B93: Масло растительное | D93: 1 | E93: 1
B94: масса пудинга | E94: 60
B95: Соус молочный
B96: молоко | D96: 10 | E96: 10
B97: масло сливочное | D97: 1.1 | E97: 1.1
B98: Мука пшеничная | D98: 1.1 | E98: 1.1
B99: Вода | D99: 10 | E99: 10
B100: Сахар | D100: 0.2 | E100: 0.2
B101: соль иодированная | D101: 0.13 | E101: 0.13
B102: масса соуса | E102: 20
A103: Пюре Картофельное | C103: 140 | F103: 2.86 | G103: 4.48 | H103: 19.08 | I103: 128.10 | J103: 16.95 | K103: № 339 СБ дошк 2016
B104: Картофель | D104: 159.60 | E104: 119.70
B105: Молоко | D105: 22.12 | E105: 21.00
B106: Масло сливочное | D106: 5.00 | E106: 5.00
B107: соль иодированная | D107: 0.52 | E107: 0.52
A108: Чай с сахаром | C108: 180/6 | F108: 0.06 | G108: 0.02 | H108: 6.02 | I108: 24.10 | J108: 0.03 | K108: № 392 Дели 2010
B109: чай весовой | D109: 0.45 | E109: 0.45
B110: сахар | D110: 6.00 | E110: 6.00
B111: Вода | D111: 180.00 | E111: 180.00
A112: Кондитерское изделие | B112: вафли | C112: 20 | D112: 20.00 | E112: 20.00 | F112: 0.75 | G112: 6.10 | H112: 12.50 | I112: 108.50 | K112: табл 10 стр 202, Ддели +,2012
A113: Хлеб пшеничный | C113: 30 | D113: 30.00 | E113: 30.00 | F113: 2.28 | G113: 0.24 | H113: 14.76 | I113: 70.50 | J113: 0.00 | K113: табл 6 стр 134,Дели + 2012
A114: Итого: | C114: 639 | F114: =F82+F85+F103+F108+F112+F113 -> 23.23 | G114: =G82+G85+G103+G108+G112+G113 -> 19.32 | H114: 65.54 | I114: 529.37 | J114: 18.42
A115: ВСЕГО: | C115: =C29+C33+C80+C114 -> 1899.00 | F115: =F29+F33+F80+F114 -> 57.54 | G115: 59.53 | H115: 229.25 | I115: 1692.24 | J115: 56.55
A117: День 2- ой
A118: Наименование блюд и | C118: Масса | D118: Кол - во | E118: Кол - во | F118: Пищевые вещества | I118: Энергетическая | J118: Витамин | K118: Сборник
A119: продуктов | C119: порции | D119: (в гр ) | E119: (в гр ) | I119: ценность | K119: рецептур
D120: брутто | E120: нетто | F120: белки | G120: жиры | H120: угл-ды | I120: Ккал | J120: С
B121: ЗАВТРАК
A122: Каша полбяная молочная с маслом сливочным | C122: 180/3 | F122: 4.81 | G122: 7.85 | H122: 29.38 | I122: 207.32 | K122: ТТК №1Д
B123: Крупа полбяная | D123: 22.50 | E123: 22.50
B124: Молоко | D124: 90.00 | E124: 90.00
B125: вода | D125: 68.00 | E125: 68.00
B126: Сахар | D126: 2.50 | E126: 2.50
B127: соль иодированная | D127: 0.50 | E127: 0.50
B128: Масло сливочное | D128: 3.00 | E128: 3.00
A129: Какао с молоком | C129: 180 | F129: 3.67 | G129: 3.19 | H129: 15.82 | I129: 106.74 | J129: 1.43 | K129: №397 Дели2010
B130: Какао-порошок | D130: 2.00 | E130: 2.00
B131: Сахар | D131: 6.00 | E131: 6.00
B132: Молоко | D132: 110.00 | E132: 110.00
B133: Вода | D133: 80.00 | E133: 80.00
A134: Бутерброд с сыром, маслом сливочным | C134: 30/10/5 | F134: 4.93 | G134: 7.16 | H134: 15.49 | I134: 146.10 | J134: 0.11 | K134: №3 сб дошк2016
B135: Батон нарезной | D135: 30.00 | E135: 30.00
B136: Сыр | D136: 10.20 | E136: 10.00
B137: Масло сливочное | D137: 5.00 | E137: 5.00
A138: Итого: | C138: 408 | F138: =F122+F129+F134 -> 13.41 | G138: =G122+G129+G134 -> 18.20 | H138: =H122+H129+H134 -> 60.69 | I138: =I122+I129+I134 -> 460.16 | J138: =J122+J129+J134 -> 1.54
B139: 2 - ой ЗАВТРАК
A140: Фрукты свежие | C140: 100 | D140: 100 | E140: 100 | F140: 0.40 | G140: 0.40 | H140: 9.80 | I140: 47.00 | J140: 10.00 | K140: №386 СБ
A141: (яблоки,или апельсин, или банан,или мандарин ) | K141: дошк.2016
A142: Итого: | C142: 100 | F142: =F140 -> 0.40 | G142: =G140 -> 0.40 | H142: =H140 -> 9.80 | I142: =I140 -> 47.00 | J142: =J140 -> 10.00
B143: ОБЕД
A144: Салат из картофеля с солеными огурцами | C144: 60 | F144: 0.73 | G144: 4.71 | H144: 5.38 | I144: 66.84 | J144: 3.62 | K144: №23 сб дошк2016
B145: огурцы соленые | D145: 32.76 | E145: 18.00
B146: картофель | D146: 32.90 | E146: 24.00
B147: морковь | D147: 15.36 | E147: 12.00
B148: лук репчатый | D148: 3.60 | E148: 3.00
B149: масло растительное | D149: 3.00 | E149: 3.00
A150: Борщ со свежей капустой, картофелем на курином бульоне, со сметаной | C150: 180/7 | F150: 1.50 | G150: 4.77 | H150: 8.11 | I150: 87.64 | J150: 7.66 | K150: №63 сб дошк2016
B151: Капуста свежая | D151: 18.75 | E151: 15.00
B152: Картофель | D152: 19.95 | E152: 15.00
B153: Морковь | D153: 12.50 | E153: 10.00
B154: Лук репчатый | D154: 9.60 | E154: 8.00
B155: Свекла | D155: 38.40 | E155: 30.00
B156: Сахар | D156: 1.80 | E156: 1.80
B157: Масло растительное | D157: 3.60 | E157: 3.60
B158: соль иодированная | D158: 0.80 | E158: 0.80
B159: Бульон | D159: 144.00 | E159: 144.00
B160: Сметана | D160: 7.00 | E160: 7.00
A161: Фрикадельки куриные в молочном соусе | C161: 50/25 | F161: 7.49 | G161: 8.92 | H161: 6.45 | I161: 136.30 | J161: 0.59 | K161: № 325 сб дошк 2016
B162: цыплята - бройлеры с/м | D162: 57.00 | E162: 37.00
B163: или фарш куриный | E163: 37.00
B164: Хлеб пшеничный | D164: 9.00 | E164: 9.00
B165: Вода | D165: 12.00 | E165: 12.00
B166: соль иодированная | D166: 0.35 | E166: 0.35
B167: Масса полуфабриката | E167: 57.00
B168: Масло растительное | D168: 0.70 | E168: 0.70
B169: Соус молочный: | E169: 25.00
B170: Молоко | D170: 12.50 | E170: 12.50
B171: Масло сливочное | D171: 1.30 | E171: 1.30
B172: Мука пшеничная | D172: 1.3 | E172: 1.3
B173: Вода | D173: 12.50 | E173: 12.5
B174: Сахар | D174: 0.30 | E174: 0.3
B175: соль иодированная | D175: 0.3 | E175: 0.3
A176: Макаронные изделия отварные с маслом сливочным | C176: 130/3 | F176: 4.91 | G176: 3.13 | H176: 27.60 | I176: 158.16 | J176: 0.00 | K176: №219 Сб дошк 2016
B177: макаронные изделия | D177: 45.5 | E177: 45.50
B178: вода | D178: 275.0 | E178: 275.0
B179: соль иодированная | D179: 0.5 | E179: 0.5
B180: Масло сливочное | D180: 3.0 | E180: 3.0
A181: Кисель | C181: 180 | F181: 0.54 | G181: 0.09 | H181: 28.18 | I181: 115.24 | J181: 0.99 | K181: № 648, сб шк2004
B182: Кисель-концентрат | D182: 21.00 | E182: 21.00
B183: Сахар | D183: 6.00 | E183: 6.00
B184: вода | D184: 180.00 | E184: 180.00
A185: Булочка дорожная | C185: 50 | F185: 3.39 | G185: 6.98 | H185: 21.07 | I185: 160.50 | K185: №453 сб дошк2016
B186: Мука пшеничная | D186: 30.50 | E186: 30.00
B187: мука пшеничная на подпыл | D187: 1.00 | E187: 1.00
B188: Сахар | D188: 6.00 | E188: 6.00
B189: Масло сливочное | D189: 6.50 | E189: 6.50
B190: соль иодированная | D190: 0.30 | E190: 0.30
B191: дрожжи сухие | D191: 0.20 | E191: 0.20
B192: вода | D192: 15.30 | E192: 15.30
B193: масса полуфабриката | E193: 57.00
B194: для крошки:
B195: мука пшеничная | D195: 1.20 | E195: 1.20
B196: масло сливочное | D196: 1.00 | E196: 1.00
B197: масса крошки | E197: 2.00
B198: масло растительное для смазки изделй | D198: 1.00 | E198: 1.00
A199: Хлеб пшеничный | C199: 25 | D199: 25.00 | E199: 25.00 | F199: 1.90 | G199: 0.20 | H199: 12.30 | I199: 58.75 | J199: 0.00 | K199: табл 6 стр 134,Дели + 2012
A200: Хлеб ржаной | C200: 45 | D200: 45.00 | E200: 45.00 | F200: 2.97 | G200: 0.54 | H200: 17.82 | I200: 89.10 | K200: табл 6 стр 144,Дели + 2012
A201: Итого: | C201: 755 | F201: =F144+F150+F161+F176+F181+F185+F199+F200 -> 23.44 | G201: =G144+G150+G161+G176+G181+G185+G199+G200 -> 29.33 | H201: 126.90 | I201: 872.53 | J201: 12.86
B202: УПЛОТНЕННЫЙ ПОЛДНИК
... 816 more rows
